bitfinex/quotes_BTCUSD_20241229
["timestamp","ask_amount","ask_price","bid_price","bid_amount"]
[1735475607509,0.301819,95131.0,95124.0,8.54e-05]
[1735475607690,0.381457,95132.0,95124.0,8.54e-05]
[1735475607897,0.002,95127.0,95124.0,8.54e-05]
[1735475608108,0.002,95126.0,95124.0,8.54e-05]
[1735475608309,0.002,95127.0,95124.0,8.54e-05]
[1735475608815,0.01849128,95127.0,95124.0,0.0020854]
[1735475609027,0.01849128,95127.0,95124.0,8.54e-05]
[1735475609430,0.01849128,95127.0,95124.0,0.0040854]
[1735475609655,0.01849128,95127.0,95124.0,0.0010854]
[1735475610168,0.01849128,95127.0,95124.0,0.0030854]
[1735475610517,0.01849128,95127.0,95124.0,0.0040854]
[1735475612005,0.02529041,95127.0,95124.0,0.0040854]
[1735475613411,0.01849128,95127.0,95124.0,0.0040854]
[1735475613559,0.665594,95126.0,95124.0,0.0040854]
[1735475613783,0.460054,95126.0,95124.0,0.0040854]
[1735475614013,0.490061,95126.0,95124.0,0.0040854]
[1735475614574,0.490061,95126.0,95124.0,0.0030854]
[1735475614774,0.490061,95126.0,95124.0,8.54e-05]
[1735475614974,0.0492061,95125.0,95124.0,0.0020854]
[1735475615170,0.7731371,95125.0,95124.0,0.00593871]
[1735475615374,0.758432,95125.0,95124.0,0.00593871]
[1735475615721,0.804932,95125.0,95124.0,0.00593871]
[1735475615858,0.804932,95125.0,95124.0,0.00193871]
[1735475616265,0.804932,95125.0,95124.0,0.00593871]
[1735475616549,0.804932,95125.0,95124.0,0.004]
[1735475616679,0.445483,95125.0,95124.0,0.006]
[1735475617472,0.525683,95125.0,95124.0,0.006]
[1735475618123,0.5782513,95125.0,95124.0,0.006]
[1735475618867,0.5947428,95125.0,95124.0,0.006]
[1735475619472,0.5421745,95125.0,95124.0,0.006]
[1735475620126,0.5421745,95125.0,95124.0,0.004]
[1735475620597,0.5431745,95125.0,95124.0,0.004]
[1735475621141,0.5421745,95125.0,95100.0,0.00104495]
[1735475621343,0.002,95118.0,95101.0,0.10398632]
[1735475621502,1.22566832,95117.0,95102.0,0.00104492]
[1735475621708,0.002,95115.0,95103.0,0.10398632]
[1735475621914,0.842045,95114.0,95104.0,0.00104489]
[1735475622885,0.002,95113.0,95104.0,0.00104487]
[1735475623057,0.839998,95112.0,95100.0,0.00104487]
[1735475623256,0.839998,95112.0,95101.0,0.10398632]
[1735475623403,0.09459843,95111.0,95102.0,0.00104746]
[1735475623715,0.79504343,95111.0,95102.0,0.00104746]
[1735475623917,0.09459843,95111.0,95102.0,0.00104746]
[1735475624111,0.002,95113.0,95104.0,0.003]
[1735475624317,0.002,95113.0,95105.0,0.00105136]
[1735475624537,0.672632,95112.0,95105.0,0.00105136]
[1735475624780,0.672632,95112.0,95102.0,0.005]
[1735475625121,0.672632,95112.0,95101.0,0.10512309]
[1735475625325,0.7400952,95112.0,95104.0,0.004]
[1735475625525,0.814306,95111.0,95104.0,0.004]
[1735475625765,0.814306,95111.0,95101.0,0.10512309]
[1735475625928,0.002,95113.0,95105.0,0.004]
[1735475626133,0.675585,95112.0,95105.0,0.004]
[1735475626335,0.468904,95112.0,95105.0,0.006]
[1735475626741,0.468904,95112.0,95105.0,0.004]
[1735475627729,0.468904,95112.0,95101.0,0.10512309]
[1735475628215,0.468904,95112.0,95104.0,0.004]
[1735475628458,0.468904,95112.0,95105.0,0.002]
[1735475628859,0.42204,95112.0,95105.0,0.005]
[1735475629064,0.355032,95111.0,95101.0,0.10512309]
[1735475629289,0.353497,95112.0,95101.0,0.10812309]
[1735475629498,0.357342,95112.0,95101.0,0.10912309]
[1735475629673,0.357342,95112.0,95101.0,0.10612309]
[1735475630096,0.357342,95112.0,95101.0,0.10512309]
[1735475630307,0.357342,95112.0,95101.0,0.10612309]
[1735475630912,0.357342,95112.0,95105.0,0.003]
[1735475631218,0.357342,95112.0,95101.0,0.10612309]
[1735475632074,0.357342,95112.0,95105.0,0.003]
[1735475632385,0.357342,95112.0,95101.0,0.10612309]
[1735475632799,0.357342,95112.0,95101.0,0.10912309]
[1735475633047,0.002,95121.0,95103.0,0.0806]
[1735475633348,0.293772,95120.0,95104.0,0.10503759]
[1735475633916,0.2747,95120.0,95104.0,0.10503759]
[1735475634331,0.2747,95120.0,95105.0,0.003]
[1735475634538,0.2747,95120.0,95106.0,0.10503756]
[1735475638156,0.03232,95119.0,95106.0,0.10803756]
[1735475638405,0.532368,95118.0,95106.0,0.10803756]
[1735475638627,0.002,95130.0,95108.0,0.0806]
[1735475638857,0.569111,95129.0,95109.0,0.18563749]
[1735475639071,0.531062,95128.0,95110.0,0.0806]
[1735475639296,0.0001708,95120.0,95111.0,0.10503746]
[1735475639516,0.0001708,95120.0,95111.0,0.10398632]
[1735475640801,0.0001708,95120.0,95112.0,0.00105121]
[1735475640988,0.0001708,95120.0,95113.0,0.10398632]
[1735475641222,0.0001708,95120.0,95114.0,0.08165118]
[1735475641382,0.0001708,95120.0,95115.0,0.10398632]
[1735475641659,0.0001708,95120.0,95116.0,0.00105115]
[1735475642361,0.0001708,95120.0,95117.0,0.0806]
[1735475642606,0.0001708,95120.0,95118.0,0.00105112]
[1735475644066,0.289567,95119.0,95118.0,0.00105112]
[1735475644313,0.289567,95119.0,95117.0,0.0806]
[1735475644686,0.289567,95119.0,95118.0,0.003]
[1735475644927,0.289567,95119.0,95118.0,0.001]
[1735475645337,0.289567,95119.0,95118.0,0.004]
[1735475645911,0.289567,95119.0,95118.0,0.003]
[1735475646624,0.0001708,95120.0,95118.0,0.003]
[1735475646860,0.0001708,95120.0,95118.0,0.00405103]
[1735475647803,0.0001708,95120.0,95118.0,0.00105103]
[1735475648043,0.0001708,95120.0,95118.0,0.00305103]
[1735475648748,0.0001708,95120.0,95118.0,0.00105103]
[1735475649157,0.0001708,95120.0,95118.0,0.00305103]
[1735475649357,0.0001708,95120.0,95118.0,0.00105103]
[1735475649597,0.0001708,95120.0,95118.0,0.00205103]
[1735475650092,0.0001708,95120.0,95117.0,0.08165122]
[1735475650511,0.0001708,95120.0,95118.0,0.001]
[1735475651104,0.0001708,95120.0,95118.0,0.004]
[1735475651305,0.0001708,95120.0,95118.0,0.001]
[1735475652466,0.209723,95119.0,95118.0,0.003]
[1735475654755,0.209723,95119.0,95117.0,0.0816]
[1735475655232,0.209723,95119.0,95118.0,0.004]
[1735475655724,0.209723,95119.0,95118.0,0.006]
[1735475655894,0.209723,95119.0,95118.0,0.002]
[1735475656938,0.0001708,95120.0,95118.0,0.002]
[1735475657967,0.0001708,95120.0,95118.0,0.006]
[1735475658168,0.0001708,95120.0,95117.0,0.0806]
[1735475658386,0.0001708,95120.0,95118.0,0.001]
[1735475658591,0.0001708,95120.0,95118.0,0.004]
[1735475659291,0.0001708,95120.0,95118.0,0.003]
[1735475661021,0.0001708,95120.0,95117.0,0.0806]
[1735475661460,0.0001708,95120.0,95118.0,0.001]
[1735475661881,0.0001708,95120.0,95117.0,0.0806]
[1735475662074,0.0001708,95120.0,95118.0,0.004]
[1735475662233,0.0001708,95120.0,95118.0,0.005]
[1735475662661,0.0001708,95120.0,95118.0,0.004]
[1735475662861,0.0001708,95120.0,95117.0,0.0806]
[1735475663266,0.0001708,95120.0,95117.0,0.09917229]
[1735475663467,0.0001708,95120.0,95117.0,0.0806]
[1735475664267,0.0001708,95120.0,95117.0,0.0866]
[1735475671057,0.912529,95119.0,95117.0,0.006]
[1735475671292,0.434618,95119.0,95117.0,0.006]
[1735475671457,0.0001708,95120.0,95117.0,0.006]
[1735475671657,0.227129,95119.0,95117.0,0.006]
[1735475671927,0.0001708,95120.0,95117.0,0.006]
[1735475672101,0.255129,95119.0,95117.0,0.006]
[1735475672433,0.147639,95119.0,95117.0,0.006]
[1735475672569,0.0001708,95120.0,95117.0,0.006]
[1735475672779,0.147639,95119.0,95117.0,0.004]
[1735475673009,0.147639,95119.0,95117.0,0.006]
[1735475673209,0.0001708,95120.0,95117.0,0.006]
[1735475673409,0.109484,95119.0,95117.0,0.006]
[1735475673617,0.109484,95119.0,95117.0,0.004]
[1735475674085,0.0001708,95120.0,95117.0,0.006]
[1735475674255,0.0001708,95120.0,95117.0,0.002]
[1735475674484,0.0001708,95120.0,95111.0,8.54e-05]
[1735475674684,0.0001708,95120.0,95117.0,0.004]
[1735475675354,0.0001708,95120.0,95111.0,8.54e-05]
[1735475675757,0.0001708,95120.0,95111.0,0.0040854]
[1735475676098,0.0001708,95120.0,95117.0,0.002]
[1735475676435,0.0001708,95120.0,95111.0,8.54e-05]
[1735475676823,0.0001708,95120.0,95111.0,0.0020854]
[1735475677626,0.0001708,95120.0,95117.0,0.004]
[1735475677807,0.0468,95119.0,95117.0,0.004]
[1735475678022,0.0468,95119.0,95111.0,0.0020854]
[1735475678539,0.0468,95119.0,95111.0,0.0060854]
[1735475678662,0.0468,95119.0,95111.0,0.0020854]
[1735475679061,0.0468,95119.0,95117.0,0.004]
[1735475679270,0.60902,95118.0,95111.0,0.0020854]
[1735475679397,1.611235,95117.0,95111.0,8.54e-05]
[1735475679594,1.443583,95116.0,95111.0,0.0040854]
[1735475679823,0.02354757,95115.0,95111.0,0.0040854]
[1735475680030,0.0468,95119.0,95111.0,0.0040854]
[1735475680031,0.002,95114.0,95111.0,0.0040854]
[1735475680189,0.0468,95119.0,95111.0,0.0040854]
[1735475680190,0.0488,95119.0,95111.0,0.0040854]
[1735475680394,0.28691,95118.0,95111.0,0.0040854]
[1735475680789,0.09425637,95115.0,95111.0,0.0040854]
[1735475681144,0.302392,95114.0,95111.0,0.0040854]
[1735475681353,0.0775385,95113.0,95111.0,0.0040854]
[1735475681551,0.002,95114.0,95111.0,0.0040854]
[1735475681750,0.524052,95113.0,95111.0,8.54e-05]
[1735475682413,0.524052,95113.0,95101.0,0.0787854]
[1735475682541,0.524052,95113.0,95102.0,0.10398632]
[1735475682746,0.524052,95113.0,95111.0,0.001]
[1735475682946,0.524052,95113.0,95102.0,0.10398632]
[1735475683171,0.60491837,95113.0,95102.0,0.10398632]
[1735475683373,0.08086637,95113.0,95111.0,0.001]
[1735475683575,0.002,95114.0,95111.0,0.001]
[1735475683926,0.765335,95113.0,95111.0,0.001]
[1735475684132,0.743274,95113.0,95111.0,0.001]
[1735475684330,0.764335,95113.0,95111.0,0.001]
[1735475685714,0.764335,95113.0,95102.0,0.10398632]
[1735475685914,0.219359,95113.0,95111.0,0.001]
[1735475686282,0.152348,95113.0,95111.0,0.001]
[1735475686484,0.002,95114.0,95111.0,0.001]
[1735475686689,0.002,95114.0,95111.0,0.002]
[1735475687024,0.002,95114.0,95112.0,0.0787]
[1735475687610,0.09425637,95117.0,95112.0,0.0787]
[1735475688787,0.09425637,95118.0,95112.0,0.0787]
[1735475689244,0.09625637,95118.0,95112.0,0.0787]
[1735475689407,0.09625637,95118.0,95112.0,0.0797]
[1735475689674,0.002,95118.0,95112.0,0.0797]
[1735475689807,0.002,95118.0,95112.0,0.0787]
[1735475690441,0.0001708,95120.0,95112.0,0.0787]
[1735475690617,0.0001708,95120.0,95112.0,0.0797]
[1735475691029,0.0021708,95120.0,95112.0,0.0797]
[1735475691470,0.002,95118.0,95112.0,0.0797]
[1735475691705,0.0021708,95120.0,95112.0,0.0797]
[1735475691906,0.002,95118.0,95112.0,0.0797]
[1735475692991,0.02578117,95118.0,95112.0,0.0797]
[1735475693146,0.002,95118.0,95112.0,0.0797]
[1735475694509,0.002,95118.0,95112.0,0.0787]
[1735475695068,0.002,95113.0,95102.0,0.10407172]
[1735475695272,0.002,95113.0,95103.0,0.0756]
[1735475695990,0.002,95113.0,95112.0,0.001]
[1735475696394,0.002,95113.0,95103.0,0.0756]
[1735475697860,0.002,95113.0,95103.0,0.0786]
[1735475698448,0.002,95112.0,95103.0,0.0786]
[1735475699611,0.002,95112.0,95103.0,0.0756]
[1735475699972,0.002,95112.0,95103.0,0.0766]
[1735475700357,0.002,95112.0,95103.0,0.0756]
[1735475700792,0.002,95112.0,95103.0,0.0766]
[1735475702015,0.002,95112.0,95103.0,0.0806]
[1735475702745,0.002,95112.0,95103.0,0.0796]
[1735475702915,0.002,95112.0,95103.0,0.0756]
[1735475703576,0.002,95112.0,95103.0,0.0766]
[1735475703776,0.002,95112.0,95103.0,0.0776]
[1735475708310,0.002,95112.0,95103.0,0.09589794]
[1735475708888,0.0001708,95113.0,95103.0,0.0776]
[1735475709962,0.002,95112.0,95103.0,0.0756]
[1735475710314,0.002,95112.0,95103.0,0.0766]
[1735475710933,0.002,95112.0,95103.0,0.0756]
[1735475711704,0.002,95112.0,95103.0,0.0766]
[1735475712532,0.002,95112.0,95103.0,0.0796]
[1735475713159,0.002,95112.0,95103.0,0.0796854]
[1735475713356,0.0021708,95112.0,95103.0,0.0796854]
[1735475716585,0.0001708,95112.0,95104.0,0.1224928]
[1735475716790,0.0001708,95112.0,95105.0,0.0828]
[1735475717002,0.0001708,95112.0,95106.0,0.10503765]
[1735475717205,0.0001708,95112.0,95107.0,0.0828]
[1735475717384,0.0001708,95112.0,95107.0,0.18678632]
[1735475719097,0.0001708,95112.0,95107.0,0.18778632]
[1735475719825,0.0001708,95112.0,95107.0,0.19078632]
[1735475726826,0.213019,95111.0,95107.0,0.19078632]
[1735475727693,0.213019,95111.0,95107.0,0.18978632]
[1735475728094,0.213019,95111.0,95107.0,0.19078632]
[1735475729242,0.0051308,95112.0,95107.0,0.18778632]
[1735475729446,0.0051308,95112.0,95107.0,0.19178632]
[1735475729654,0.0051308,95112.0,95108.0,0.01890939]
[1735475730387,0.0051308,95112.0,95107.0,0.18678632]
[1735475730812,0.0051308,95112.0,95107.0,0.18778632]
[1735475731013,0.0051308,95112.0,95107.0,0.19078632]
[1735475732554,0.0051308,95112.0,95108.0,0.10398632]
[1735475732759,0.0051308,95112.0,95109.0,0.0815]
[1735475733059,0.0051308,95112.0,95111.0,0.0815]
[1735475733259,0.0051308,95112.0,95111.0,0.18548632]
[1735475734677,0.0051308,95112.0,95111.0,0.18653753]
[1735475736614,0.0051308,95112.0,95111.0,0.18853753]
[1735475736815,0.0051308,95112.0,95111.0,0.18819653]
[1735475737175,0.0051308,95112.0,95111.0,0.19419653]
[1735475742016,0.04643642,95132.0,95111.0,0.19419653]
[1735475742225,0.353113,95131.0,95112.0,0.12814597]
[1735475742464,0.353113,95131.0,95114.0,0.0833]
[1735475742634,0.04643642,95132.0,95116.0,0.0833]
[1735475742846,0.04643642,95132.0,95117.0,0.10503747]
[1735475743339,0.002,95132.0,95118.0,0.0833]
[1735475743503,0.002,95132.0,95119.0,0.12628717]
[1735475744351,0.0491,95134.0,95119.0,0.12628717]
[1735475744550,0.111947,95133.0,95120.0,0.0833]
[1735475744767,0.111947,95133.0,95121.0,0.10503743]
[1735475745120,0.111947,95133.0,95122.0,0.02095871]
[1735475745296,0.111947,95133.0,95123.0,0.1050374]
[1735475745470,0.0491,95134.0,95123.0,0.1050374]
[1735475746504,0.002,95132.0,95123.0,0.1050374]
[1735475747050,0.0491,95134.0,95123.0,0.1050374]
[1735475747264,0.0511,95134.0,95123.0,0.1050374]
[1735475747472,0.337369,95133.0,95123.0,0.1050374]
[1735475749359,0.259534,95132.0,95123.0,0.1051228]
[1735475749580,0.306269,95133.0,95123.0,0.1051228]
[1735475749821,0.002,95132.0,95123.0,0.1051228]
[1735475750440,0.0492708,95134.0,95123.0,0.1051228]
[1735475750648,0.199442,95133.0,95123.0,0.1051228]
[1735475750818,0.201442,95133.0,95123.0,0.1051228]
[1735475751029,0.152707,95132.0,95123.0,0.1051228]
[1735475751532,0.198883,95133.0,95123.0,0.1051228]
[1735475752155,0.0021708,95134.0,95124.0,0.0782]
[1735475752361,0.0021708,95134.0,95126.0,0.0782]
[1735475752673,0.0021708,95134.0,95127.0,0.10503742]
[1735475753526,0.0001708,95134.0,95127.0,0.10503742]
[1735475753950,0.002,95133.0,95127.0,0.10503742]
[1735475754287,0.0001708,95134.0,95127.0,0.10503742]
[1735475754487,0.0001708,95134.0,95127.0,0.10603742]
[1735475756036,0.0001708,95134.0,95128.0,0.0782]
[1735475756244,0.0001708,95134.0,95130.0,0.0782]
[1735475756383,0.0001708,95134.0,95131.0,0.18323733]
[1735475757957,0.0001708,95134.0,95131.0,0.18823733]
[1735475758543,0.0001708,95134.0,95131.0,0.18323733]
[1735475758870,0.0001708,95134.0,95131.0,0.18923733]
[1735475759832,0.0001708,95134.0,95132.0,0.0796]
[1735475760043,0.0001708,95134.0,95133.0,0.10503732]
[1735475760603,0.0001708,95134.0,95133.0,0.12410105]
[1735475760829,0.0001708,95134.0,95133.0,0.10503732]
[1735475762225,0.0001708,95134.0,95133.0,0.19063732]
[1735475762600,0.0001708,95134.0,95133.0,0.19263732]
[1735475763643,0.0001708,95134.0,95133.0,0.18663732]
[1735475764003,0.0001708,95134.0,95133.0,0.18463732]
[1735475764338,0.0001708,95134.0,95133.0,0.19263732]
[1735475764563,0.0001708,95134.0,95133.0,0.19563732]
[1735475764756,0.0001708,95134.0,95133.0,0.18763732]
[1735475764981,0.0001708,95134.0,95133.0,0.18463732]
[1735475765182,0.0001708,95134.0,95133.0,0.19363732]
[1735475765410,0.0001708,95134.0,95133.0,0.21700105]
[1735475765542,0.0001708,95134.0,95133.0,0.21595005]
[1735475766699,0.0001708,95134.0,95133.0,0.19658632]
[1735475766838,0.0001708,95134.0,95133.0,0.18758632]
[1735475767040,0.0001708,95134.0,95133.0,0.19658632]
[1735475767452,0.0001708,95134.0,95133.0,0.18758632]
[1735475767747,0.0001708,95134.0,95133.0,0.19258632]
[1735475767970,0.0001708,95134.0,95133.0,0.19558632]
[1735475769287,0.0001708,95134.0,95133.0,0.19258632]
[1735475769775,0.0001708,95134.0,95133.0,0.19558632]
[1735475776982,0.0001708,95134.0,95133.0,0.19663732]
[1735475777183,0.0001708,95134.0,95133.0,0.19558632]
[1735475777386,0.01148489,95152.0,95133.0,0.19558632]
[1735475777586,0.840429,95151.0,95133.0,0.19558632]
[1735475778505,0.840429,95151.0,95133.0,0.19258632]
[1735475778932,0.01024014,95150.0,95133.0,0.009]
[1735475779128,3.5253,95149.0,95133.0,0.009]
[1735475779335,0.0753,95146.0,95133.0,0.009]
[1735475779515,0.0479,95144.0,95133.0,0.009]
[1735475779714,0.0479,95141.0,95133.0,0.009]
[1735475779897,1.942003,95140.0,95133.0,0.009]
[1735475780139,1.929221,95140.0,95133.0,0.009]
[1735475780343,1.970195,95140.0,95132.0,8.54e-05]
[1735475780781,1.970195,95140.0,95133.0,0.002]
[1735475781003,1.970195,95140.0,95132.0,8.54e-05]
[1735475781199,1.98658404,95140.0,95132.0,8.54e-05]
[1735475781344,2.298728,95139.0,95132.0,8.54e-05]
[1735475783260,1.992099,95138.0,95132.0,8.54e-05]
[1735475783477,2.328153,95139.0,95132.0,8.54e-05]
[1735475783679,1.987047,95139.0,95132.0,8.54e-05]
[1735475783888,2.09103332,95139.0,95132.0,8.54e-05]
[1735475784085,1.65094,95138.0,95132.0,8.54e-05]
[1735475784512,1.558827,95138.0,95132.0,8.54e-05]
[1735475784716,1.748968,95138.0,95132.0,8.54e-05]
[1735475785169,0.0479,95137.0,95132.0,8.54e-05]
[1735475785349,3.59341155,95136.0,95132.0,8.54e-05]
[1735475785553,3.498643,95135.0,95132.0,8.54e-05]
[1735475785729,2.717844,95134.0,95132.0,8.54e-05]
[1735475786081,0.11146969,95136.0,95132.0,8.54e-05]
[1735475786082,2.946517,95135.0,95132.0,8.54e-05]
[1735475786378,2.874442,95135.0,95132.0,8.54e-05]
[1735475786752,0.1232,95133.0,95132.0,8.54e-05]
[1735475786953,3.598155,95133.0,95132.0,0.0010854]
[1735475787337,3.598155,95133.0,95132.0,8.54e-05]
[1735475787535,3.57756332,95133.0,95132.0,8.54e-05]
[1735475787767,3.30138832,95133.0,95132.0,0.0020854]
[1735475787969,3.30138832,95133.0,95132.0,8.54e-05]
[1735475788354,3.30238832,95133.0,95132.0,8.54e-05]
[1735475788556,3.30138832,95133.0,95132.0,8.54e-05]
[1735475788914,3.30238832,95133.0,95132.0,8.54e-05]
[1735475789273,3.30538832,95133.0,95132.0,8.54e-05]
[1735475789494,3.21447032,95133.0,95132.0,8.54e-05]
[1735475790326,2.96706732,95133.0,95132.0,8.54e-05]
[1735475790679,2.07318832,95133.0,95132.0,8.54e-05]
[1735475791551,2.08342818,95133.0,95132.0,8.54e-05]
[1735475792265,2.08242818,95133.0,95132.0,8.54e-05]
[1735475792463,2.07942818,95133.0,95132.0,8.54e-05]
[1735475792605,2.08242818,95133.0,95132.0,8.54e-05]
[1735475793637,2.08342818,95133.0,95132.0,8.54e-05]
[1735475796008,2.77314018,95133.0,95132.0,8.54e-05]
[1735475796211,2.73114018,95133.0,95132.0,8.54e-05]
[1735475796411,2.71003718,95133.0,95132.0,8.54e-05]
[1735475796621,2.52013918,95133.0,95132.0,8.54e-05]
[1735475797421,2.42190318,95133.0,95132.0,8.54e-05]
[1735475798068,2.41166332,95133.0,95132.0,8.54e-05]
[1735475802042,2.43962876,95133.0,95132.0,8.54e-05]
[1735475802250,2.41166332,95133.0,95132.0,8.54e-05]
[1735475802833,2.43962876,95133.0,95132.0,8.54e-05]
[1735475806856,2.41166332,95133.0,95132.0,8.54e-05]
[1735475807836,2.44987523,95133.0,95132.0,8.54e-05]
[1735475815612,0.26939823,95133.0,95132.0,8.54e-05]
[1735475816477,3.94066423,95133.0,95132.0,8.54e-05]
[1735475816677,0.26939823,95133.0,95132.0,8.54e-05]
[1735475816911,4.18764823,95133.0,95132.0,8.54e-05]
[1735475817116,4.07311091,95133.0,95132.0,8.54e-05]
[1735475817282,4.02604991,95133.0,95132.0,8.54e-05]
[1735475818114,4.12604991,95133.0,95132.0,8.54e-05]
[1735475820046,4.09808447,95133.0,95132.0,8.54e-05]
[1735475820265,3.62437223,95133.0,95132.0,8.54e-05]
[1735475820463,3.04043023,95133.0,95132.0,8.54e-05]
[1735475820626,2.45026178,95133.0,95132.0,8.54e-05]
[1735475821050,2.241031,95133.0,95132.0,8.54e-05]
[1735475821255,1.64729,95133.0,95132.0,8.54e-05]
[1735475821867,1.83567123,95133.0,95132.0,8.54e-05]
[1735475822067,1.16769623,95133.0,95132.0,8.54e-05]
[1735475822269,0.78084423,95133.0,95132.0,0.0822854]
[1735475822466,0.18938123,95133.0,95132.0,0.0822854]
[1735475822862,0.19338123,95133.0,95132.0,0.0812854]
[1735475823070,0.19338123,95133.0,95132.0,0.0822854]
[1735475823071,0.006,95133.0,95132.0,0.0822854]
[1735475823447,0.001,95133.0,95132.0,0.0822854]
[1735475823800,0.004,95133.0,95132.0,0.0822854]
[1735475824244,0.196506,95133.0,95132.0,0.0822854]
[1735475824441,0.344041,95133.0,95132.0,0.0822854]
[1735475824642,0.357475,95133.0,95132.0,0.0812854]
[1735475825425,0.361475,95133.0,95132.0,0.0812854]
[1735475825656,0.358475,95133.0,95132.0,0.0812854]
[1735475826122,0.354475,95133.0,95132.0,0.0822854]
[1735475826427,0.84296,95134.0,95132.0,0.0822854]
[1735475826655,0.88470406,95134.0,95132.0,0.0862854]
[1735475826826,1.887788,95133.0,95132.0,0.0862854]
[1735475827049,1.604139,95133.0,95132.0,0.0862854]
[1735475827413,1.56662,95133.0,95132.0,0.0852854]
[1735475827609,0.533648,95133.0,95132.0,0.0852854]
[1735475827808,0.125361,95133.0,95132.0,0.0852854]
[1735475827992,0.127361,95134.0,95132.0,0.0852854]
[1735475828420,0.113761,95134.0,95132.0,0.0852854]
[1735475828846,0.113761,95134.0,95132.0,0.0812854]
[1735475829228,0.113761,95134.0,95132.0,0.0842854]
[1735475829438,0.113761,95134.0,95132.0,0.0852854]
[1735475832541,0.1289273,95134.0,95132.0,0.0852854]
[1735475832744,0.412931,95133.0,95132.0,0.0852854]
[1735475832976,0.41283693,95133.0,95132.0,0.0852854]
[1735475833591,0.41283693,95133.0,95132.0,0.0842854]
[1735475833960,0.41283693,95133.0,95132.0,0.0822854]
[1735475834831,0.0153371,95134.0,95132.0,0.0822854]
[1735475835024,1.06109,95133.0,95132.0,0.0822854]
[1735475835232,0.900663,95133.0,95132.0,0.0822854]
[1735475835584,0.161574,95133.0,95132.0,0.0822854]
[1735475835797,0.109151,95133.0,95132.0,0.0822854]
[1735475836001,0.109151,95133.0,95132.0,0.28102726]
[1735475836224,0.0001708,95134.0,95133.0,0.17185554]
[1735475836528,0.0001708,95134.0,95133.0,0.32574186]
[1735475838115,0.0001708,95134.0,95133.0,0.33874186]
[1735475838316,0.0001708,95134.0,95133.0,0.32974186]
[1735475838811,0.0001708,95134.0,95133.0,0.33774186]
[1735475839207,0.0001708,95134.0,95133.0,0.32974186]
[1735475839577,0.0001708,95134.0,95133.0,0.33474186]
[1735475839993,0.0001708,95134.0,95133.0,0.33974186]
[1735475846836,0.0001708,95134.0,95133.0,0.33982726]
[1735475850572,0.0001708,95134.0,95133.0,0.37381853]
[1735475850776,0.0001708,95134.0,95133.0,0.33982726]
[1735475851153,0.0001708,95152.0,95151.0,0.09475554]
[1735475851355,0.0001708,95152.0,95151.0,0.32694186]
[1735475852605,0.0001708,95152.0,95151.0,0.33094186]
[1735475852905,0.0001708,95152.0,95151.0,0.36003605]
[1735475853337,0.0001708,95152.0,95151.0,0.36503605]
[1735475853811,0.0001708,95152.0,95151.0,0.36603605]
[1735475854172,0.0001708,95152.0,95151.0,0.36503605]
[1735475854407,0.0001708,95152.0,95151.0,0.33194186]
[1735475854623,0.0001708,95152.0,95151.0,0.33294186]
[1735475864477,0.0001708,95152.0,95151.0,0.33194186]
[1735475864840,0.0001708,95152.0,95151.0,0.33294186]
[1735475865359,0.0001708,95152.0,95151.0,0.32694186]
[1735475865779,0.0001708,95152.0,95151.0,0.33294186]
[1735475866203,0.0001708,95152.0,95151.0,0.32694186]
[1735475866469,0.0001708,95152.0,95151.0,0.33394186]
[1735475866655,0.0001708,95152.0,95151.0,0.36663605]
[1735475867853,0.0001708,95152.0,95151.0,0.36863605]
[1735475868260,0.0001708,95152.0,95151.0,0.36663605]
[1735475868481,0.0001708,95152.0,95151.0,0.35963605]
[1735475868707,0.0001708,95152.0,95151.0,0.36263605]
[1735475868877,0.0001708,95152.0,95151.0,0.37063605]
[1735475871941,0.0001708,95152.0,95151.0,0.33794186]
[1735475875514,0.0001708,95152.0,95151.0,0.29104186]
[1735475877183,0.0001708,95152.0,95151.0,0.19628632]
[1735475877388,0.0001708,95152.0,95151.0,0.29104186]
[1735475881054,0.0001708,95152.0,95151.0,0.43954186]
[1735475881246,0.0001708,95152.0,95151.0,0.49349605]
[1735475882591,0.0001708,95152.0,95151.0,0.48249605]
[1735475882791,0.0001708,95152.0,95151.0,0.57695629]
[1735475882993,0.0001708,95152.0,95151.0,0.59195629]
[1735475883823,0.0001708,95152.0,95151.0,0.49749605]
[1735475884045,0.0001708,95152.0,95151.0,0.44354186]
[1735475885516,0.0001708,95152.0,95151.0,0.34354186]
[1735475890992,0.0001708,95152.0,95151.0,0.24878632]
[1735475891298,0.0001708,95152.0,95151.0,0.34354186]
[1735475892034,0.0001708,95152.0,95151.0,0.24878632]
[1735475892267,0.0001708,95152.0,95151.0,0.34354186]
[1735475895624,0.0001708,95152.0,95151.0,0.40734207]
[1735475895983,0.0001708,95152.0,95151.0,0.60734207]
[1735475897620,0.0001708,95152.0,95151.0,0.65922496]
[1735475898046,0.0001708,95152.0,95151.0,0.59542475]
[1735475898476,0.0001708,95152.0,95151.0,1.13434146]
[1735475899353,0.0001708,95152.0,95151.0,0.94491722]
[1735475902940,0.0001708,95152.0,95151.0,0.95280953]
[1735475911189,0.0001708,95177.0,95176.0,0.31945554]
[1735475911391,0.00068058,95177.0,95176.0,0.5172703]
[1735475911605,0.00068058,95177.0,95176.0,0.6172703]
[1735475912887,0.00068058,95177.0,95176.0,0.6232703]
[1735475913266,0.00068058,95177.0,95176.0,0.6172703]
[1735475913580,0.00068058,95177.0,95176.0,0.6232703]
[1735475913785,0.00068058,95177.0,95176.0,0.71787381]
[1735475914366,0.00068058,95177.0,95176.0,0.72687381]
[1735475914883,0.00068058,95177.0,95176.0,0.71787381]
[1735475915087,0.00068058,95177.0,95176.0,0.72687381]
[1735475915883,0.00068058,95177.0,95176.0,0.6322703]
[1735475917722,0.00068058,95177.0,95176.0,0.59032475]
[1735475920821,0.0171601,95177.0,95176.0,0.59032475]
[1735475922956,0.02023401,95227.0,95211.0,0.09475554]
[1735475923168,2.923451,95226.0,95211.0,0.09475554]
[1735475923366,2.866199,95226.0,95211.0,0.09475554]
[1735475923660,0.10398632,95225.0,95211.0,0.09475554]
[1735475923857,2.73609432,95225.0,95211.0,0.09475554]
[1735475924016,2.494493,95224.0,95211.0,0.09475554]
[1735475924997,2.494493,95224.0,95212.0,0.09475554]
[1735475925132,2.351013,95223.0,95212.0,0.09475554]
[1735475925328,2.356276,95224.0,95212.0,0.09475554]
[1735475925653,2.37857905,95223.0,95212.0,0.09475554]
[1735475925851,2.292586,95222.0,95212.0,0.09475554]